bitfinex-derivatives/quotes_ETHF0:USTF0_20240927
["timestamp","ask_amount","ask_price","bid_price","bid_amount"]
[1727399284274,0.26491,2641.7,2641.6,3.3]
[1727399286072,0.26493,2641.5,2641.4,0.7699]
[1727399290073,0.26493,2641.5,2641.4,0.383]
[1727399292567,0.3974,2641.9,2641.4,1.743]
[1727399292772,0.26491,2641.8,2641.5,0.4067]
[1727399292977,0.4075,2641.9,2641.6,1.36]
[1727399293168,0.401,2642.2,2641.7,5.058]
[1727399293375,0.4075,2642.3,2641.7,5.058]
[1727399293569,0.4075,2642.3,2641.8,0.3895]
[1727399293771,0.4075,2642.3,2642.1,1.36]
[1727399293987,0.088,2642.9,2642.2,2.1562]
[1727399294170,0.26481,2642.7,2642.4,1.36]
[1727399294373,0.26481,2642.7,2642.2,0.7962]
[1727399294979,3.5969,2642.8,2642.2,0.7962]
[1727399295185,0.26482,2642.6,2642.2,0.7962]
[1727399295374,2.95,2642.7,2642.2,0.7962]
[1727399295690,0.4032,2642.6,2642.2,0.7962]
[1727399295983,0.26485,2642.4,2642.2,0.7962]
[1727399296484,0.26483,2642.5,2642.2,0.7962]
[1727399297774,0.4032,2642.6,2642.2,0.7962]
[1727399298286,0.26484,2642.5,2642.2,0.7962]
[1727399298486,3.2078,2642.7,2642.2,0.7962]
[1727399298787,0.26482,2642.6,2642.2,0.7962]
[1727399299478,0.26483,2642.5,2642.2,0.7962]
[1727399299882,0.26482,2642.6,2642.2,0.7962]
[1727399300075,0.26482,2642.6,2642.2,1.1887]
[1727399301285,0.26483,2642.5,2642.2,1.1887]
[1727399302082,0.26485,2642.4,2642.2,1.1887]
[1727399302289,0.66035,2642.4,2642.2,1.1887]
[1727399303875,0.26485,2642.3,2642.2,1.1887]
[1727399304688,0.66034,2642.4,2642.2,1.1887]
[1727399304885,0.3955,2642.4,2642.2,1.1887]
[1727399305086,0.66034,2642.4,2642.2,1.1887]
[1727399305481,0.3955,2642.4,2642.2,1.1887]
[1727399305687,0.66035,2642.4,2642.2,1.1887]
[1727399305990,0.3955,2642.4,2642.2,1.1887]
[1727399306493,0.66035,2642.4,2642.2,1.1887]
[1727399306688,0.3955,2642.4,2642.2,1.1887]
[1727399306888,0.26483,2642.5,2642.2,1.1887]
[1727399307392,0.26485,2642.4,2642.2,1.1887]
[1727399307690,0.26484,2642.4,2642.2,1.1887]
[1727399307889,0.26485,2642.3,2642.2,1.1887]
[1727399308387,0.26485,2642.4,2642.2,1.1887]
[1727399309185,0.26485,2642.3,2642.2,1.1887]
[1727399309587,0.26484,2642.4,2642.2,1.1887]
[1727399310082,0.26485,2642.3,2642.2,1.1887]
[1727399310293,0.26484,2642.4,2642.2,1.1887]
[1727399311285,0.26485,2642.3,2642.2,1.1887]
[1727399311789,0.26484,2642.4,2642.2,1.1887]
[1727399312180,0.26483,2642.5,2642.2,1.1887]
[1727399313183,3.3588,2642.9,2642.2,1.45356]
[1727399313386,0.26482,2642.6,2642.2,1.45356]
[1727399313786,0.26481,2642.7,2642.3,0.26485]
[1727399313983,0.26481,2642.7,2642.3,3.47265]
[1727399314182,3.3588,2642.9,2642.2,1.1887]
[1727399314183,0.26482,2642.6,2642.2,1.1887]
[1727399314382,0.26482,2642.7,2642.2,2.5487]
[1727399314589,0.26482,2642.7,2642.3,0.26484]
[1727399317096,0.26482,2642.7,2642.2,6.02135]
[1727399317495,0.3845,2643.0,2642.6,1.36]
[1727399317792,0.26474,2643.4,2642.9,1.36]
[1727399317996,3.47251,2643.7,2643.3,1.36]
[1727399318188,0.26472,2643.6,2643.4,4.4726]
[1727399318789,3.2078,2643.7,2643.4,0.7937]
[1727399318790,0.26473,2643.5,2643.4,0.7937]
[1727399319296,0.26473,2643.5,2643.4,0.3884]
[1727399319495,0.65083,2643.5,2643.4,0.3884]
[1727399319899,0.26476,2643.2,2643.1,3.7053]
[1727399320102,0.26476,2643.2,2643.1,4.0937]
[1727399320598,0.26476,2643.2,2643.1,0.3884]
[1727399320997,0.26478,2643.0,2642.9,0.4059]
[1727399321598,0.26478,2643.0,2642.8,0.375]
[1727399321599,0.26479,2642.9,2642.8,0.375]
[1727399321797,0.26482,2642.6,2642.5,0.7946]
[1727399322094,0.26482,2642.6,2642.5,1.1696]
[1727399325901,3.3263,2642.9,2642.5,1.1696]
[1727399325902,0.26481,2642.7,2642.5,1.1696]
[1727399326209,0.3778,2643.1,2642.5,7.3274]
[1727399326401,0.2648,2642.9,2642.5,7.59222]
[1727399326602,0.26479,2642.9,2642.5,7.59223]
[1727399326999,0.26478,2643.0,2642.6,0.26482]
[1727399327902,0.3778,2643.1,2642.6,0.26482]
[1727399327903,0.26479,2642.9,2642.6,0.26482]
[1727399328104,0.26479,2642.9,2642.7,3.3]
[1727399328300,0.26478,2643.0,2642.7,3.3]
[1727399329105,0.2648,2642.9,2642.7,3.3]
[1727399329509,0.26479,2642.9,2642.7,3.3]
[1727399329806,0.3778,2643.1,2642.8,3.2078]
[1727399329807,0.26477,2643.1,2642.8,3.2078]
[1727399330010,0.26477,2643.1,2642.9,0.3789]
[1727399330211,0.26477,2643.1,2643.0,0.7651]
[1727399330904,3.9739,2643.7,2643.0,16.7061]
[1727399331103,0.66181,2643.6,2643.1,3.2078]
[1727399331305,0.66181,2643.6,2643.0,3.5925]
[1727399331306,0.26477,2643.1,2643.0,3.5925]
[1727399331520,0.26477,2643.1,2643.0,0.3847]
[1727399332506,0.26472,2643.6,2643.2,0.26476]
[1727399332803,0.26472,2643.6,2643.3,0.378]
[1727399333004,3.87071,2643.7,2643.3,0.7511]
[1727399333414,3.87071,2643.7,2643.3,3.96585]
[1727399333415,3.606,2643.7,2643.3,3.96585]
[1727399333612,3.2078,2643.7,2643.3,3.96585]
[1727399334010,3.2078,2643.7,2643.3,3.96584]
[1727399335001,0.2647,2643.8,2643.3,3.96584]
[1727399336508,0.3876,2644.0,2643.5,2.95]
[1727399336711,3.47245,2644.4,2643.9,3.21469]
[1727399336919,0.26467,2644.2,2644.0,0.7654]
[1727399337120,0.26467,2644.2,2644.1,0.3949]
[1727399337915,0.63815,2644.3,2644.1,0.3949]
[1727399338112,0.26466,2644.2,2644.1,0.3949]
[1727399338316,0.63815,2644.3,2644.1,0.3949]
[1727399338715,0.26466,2644.2,2644.1,0.3949]
[1727399340006,3.7393,2644.7,2644.1,0.3949]
[1727399340007,6.1578,2644.7,2644.1,0.3949]
[1727399340211,0.7667,2644.6,2644.1,0.3949]
[1727399340622,0.26463,2644.5,2644.1,0.3949]
[1727399340816,0.26464,2644.5,2644.1,3.6027]
[1727399341005,3.2078,2645.1,2644.3,2.95]
[1727399341211,0.26461,2644.7,2644.3,2.95]
[1727399341509,3.9745,2645.1,2644.5,2.95]
[1727399341714,3.9745,2645.1,2644.6,1.179]
[1727399341715,0.26458,2645.0,2644.6,1.179]
[1727399342419,3.2078,2645.1,2644.6,1.179]
[1727399342715,3.2078,2645.1,2644.6,4.129]
[1727399342716,0.409,2644.9,2644.6,4.129]
[1727399343017,3.2078,2645.1,2644.8,2.95]
[1727399343213,0.26452,2645.7,2645.0,2.95]
[1727399343413,0.409,2645.9,2645.4,3.2078]
[1727399343612,0.3874,2646.0,2645.7,2.95]
[1727399343812,3.2078,2646.2,2645.7,2.95]
[1727399343813,3.47226,2646.2,2645.7,2.95]
[1727399344015,3.2078,2646.2,2645.8,0.4044]
[1727399344214,3.2078,2646.5,2645.5,3.3]
[1727399344419,0.409,2646.6,2646.0,2.95]
[1727399344623,2.95,2646.1,2645.6,8.2672104]
[1727399344807,2.95,2645.8,2645.5,3.388]
[1727399345113,2.95,2645.8,2645.5,3.3]
[1727399345315,3.5873,2645.9,2645.5,3.3]
[1727399345719,2.95,2645.7,2645.5,3.3]
[1727399345912,3.21451,2645.7,2645.2,0.4044]
[1727399346422,3.47232,2645.6,2645.2,3.7044]
[1727399346611,3.2078,2645.6,2645.2,3.7044]
[1727399346811,0.4036,2645.5,2645.2,0.4044]
[1727399347320,0.3795,2645.4,2645.2,0.4044]
[1727399347510,3.2078,2645.3,2644.6,0.088]
[1727399347717,3.2078,2645.0,2644.7,0.3915]
[1727399347911,2.95,2645.2,2644.7,0.3915]
[1727399348217,2.95,2645.2,2644.2,2.95]
[1727399348218,0.4083,2644.9,2644.2,2.95]
[1727399348513,0.4083,2644.9,2644.4,3.342]
[1727399348514,3.2078,2644.7,2644.4,3.342]
[1727399348709,0.4083,2644.9,2644.4,3.342]
[1727399348915,3.6161,2644.9,2644.4,3.342]
[1727399349723,3.88069,2644.9,2644.4,3.342]
[1727399350111,3.88069,2644.9,2644.4,0.392]
[1727399350316,0.26462,2644.6,2644.4,0.392]
[1727399350519,0.26461,2644.7,2644.4,0.392]
[1727399350711,0.26462,2644.6,2644.4,0.392]
[1727399350916,3.47242,2644.6,2644.3,3.6915]
[1727399351313,0.26464,2644.4,2644.3,3.3]
[1727399351520,6.0,2644.4,2643.6,0.4657]
[1727399351816,0.26467,2644.1,2643.6,0.3777]
[1727399352013,3.2078,2644.2,2643.7,3.3]
[1727399352221,3.47246,2644.2,2643.7,3.3]
[1727399352423,3.2078,2644.2,2643.7,3.3]
[1727399352927,0.3934,2644.3,2643.7,3.5647]
[1727399353217,0.26465,2644.4,2643.7,3.3]
[1727399353824,0.26466,2644.3,2643.7,3.3]
[1727399354216,3.2078,2644.6,2643.7,3.3]
[1727399354417,3.2078,2644.3,2643.7,3.3]
[1727399354718,0.26469,2644.0,2643.7,3.3]
[1727399355123,0.3769,2644.2,2643.7,3.3]
[1727399355124,0.26467,2644.1,2643.7,3.3]
[1727399355326,0.26469,2643.9,2643.7,3.3]
[1727399355525,0.3769,2644.2,2643.7,3.3]
[1727399355712,0.2647,2643.8,2643.7,3.3]
[1727399355912,0.26469,2643.9,2643.7,3.3]
[1727399356424,0.2647,2643.8,2643.7,3.3]
[1727399358214,0.26469,2643.9,2643.7,3.3]
[1727399360229,0.2647,2643.8,2643.7,3.3]
[1727399361223,3.7824,2643.8,2643.3,0.4034]
[1727399361522,0.26472,2643.6,2643.3,0.4034]
[1727399361728,3.85201,2643.7,2643.4,3.3]
[1727399362025,0.26472,2643.6,2643.4,3.3]
[1727399362520,0.3795,2643.7,2643.4,3.3]
[1727399362727,0.64421,2643.7,2643.4,3.3]
[1727399364432,0.26473,2643.6,2643.4,3.3]
[1727399365724,3.5873,2643.7,2643.4,3.3]
[1727399365725,3.47251,2643.7,2643.4,3.3]
[1727399366224,0.26471,2643.7,2643.4,3.3]
[1727399367023,0.26472,2643.6,2643.4,3.3]
[1727399367828,0.26471,2643.7,2643.4,3.3]
[1727399368137,0.26473,2643.5,2643.4,3.3]
[1727399370924,0.26472,2643.6,2643.4,3.3]
[1727399371128,0.26472,2643.6,2643.4,3.6732]
[1727399371837,0.26473,2643.5,2643.4,3.6732]
[1727399375941,0.26473,2643.5,2643.4,3.3]
[1727399376138,0.26474,2643.4,2643.3,0.4034]
[1727399376634,0.26474,2643.4,2643.3,3.7034]
[1727399377035,0.9266,2643.4,2643.3,3.3]
[1727399377240,0.2648,2642.8,2642.7,0.088]
[1727399377431,0.26482,2642.7,2642.6,0.3981]
[1727399377734,0.66206,2642.6,2641.8,0.088]
[1727399377935,0.26485,2642.3,2642.2,0.3717]
[1727399378135,0.26484,2642.4,2642.2,2.9717]
[1727399378327,0.7518,2642.6,2642.2,2.9717]
[1727399378328,0.26485,2642.3,2642.2,2.9717]
[1727399378931,3.21485,2642.3,2642.2,2.9717]
[1727399379131,3.21485,2642.3,2642.2,2.6]
[1727399380333,0.26485,2642.3,2642.2,2.6]
[1727399382645,3.2078,2642.5,2642.2,2.6]
[1727399382839,0.26485,2642.4,2642.2,2.6]
[1727399383334,3.5883,2642.6,2642.2,2.6]
[1727399383736,0.26483,2642.5,2642.2,2.6]
[1727399383946,0.26483,2642.5,2642.3,0.4045]
[1727399384142,0.26483,2642.5,2642.4,0.3795]
[1727399389341,3.5936,2642.9,2642.4,0.3795]
[1727399389542,0.26481,2642.7,2642.4,0.3795]
[1727399389741,0.26483,2642.6,2642.4,0.3795]
[1727399391743,0.26481,2642.7,2642.4,0.3795]
[1727399392046,0.26482,2642.6,2642.4,0.3795]
[1727399392345,3.5936,2642.9,2642.4,0.3795]
[1727399392346,0.26482,2642.7,2642.4,0.3795]
[1727399392854,0.26483,2642.6,2642.4,0.3795]
[1727399393346,0.4025,2643.1,2642.5,3.784]
[1727399393648,0.26479,2642.9,2642.5,0.3734]
[1727399394547,0.26479,2642.9,2642.5,0.63823]
[1727399395245,0.088,2643.5,2642.6,3.784]
[1727399395444,0.26475,2643.3,2642.9,0.26479]
[1727399395649,3.9981,2643.7,2643.1,0.26476]
[1727399395863,0.26473,2643.5,2643.0,4.26067]
[1727399396149,0.26473,2643.5,2643.1,0.67537]
[1727399396343,0.26473,2643.5,2643.2,2.6]
[1727399399649,0.26472,2643.6,2643.2,2.6]
[1727399399852,0.26473,2643.5,2643.2,2.6]
[1727399400456,0.26474,2643.4,2643.2,2.6]
[1727399400659,0.26474,2643.5,2643.2,2.6]
[1727399400853,0.26474,2643.4,2643.2,2.6]
[1727399401546,0.26475,2643.3,2643.2,2.6]
[1727399401760,0.66188,2643.3,2642.5,0.088]
[1727399401957,6.1578,2643.4,2642.4,5.38063558]
[1727399401958,2.95,2642.7,2642.4,4.5423]
[1727399402254,0.26485,2642.3,2642.0,2.6]
[1727399402465,3.2078,2642.5,2642.0,2.9843]
[1727399402648,0.26484,2642.4,2642.0,2.9843]
[1727399402845,3.2078,2642.5,2642.0,6.1921]
[1727399403050,3.63,2642.3,2641.4,0.98479558]
[1727399403250,0.26486,2642.2,2641.5,0.7769]
[1727399403452,6.8378,2642.3,2641.5,0.7769]
[1727399403755,0.26488,2642.1,2641.7,3.2078]
[1727399404059,0.26486,2642.2,2641.7,3.2078]
[1727399404955,0.26487,2642.1,2641.6,5.8078]
[1727399405353,3.9864,2642.6,2641.6,6.07272]
[1727399405861,0.26486,2642.2,2641.6,6.07272]
[1727399406564,0.26486,2642.2,2641.6,5.8078]
[1727399406758,3.9864,2642.6,2641.7,3.63]
[1727399406954,3.9864,2642.6,2642.0,0.26487]
[1727399406955,3.2078,2642.6,2642.0,0.26487]
[1727399407155,3.2078,2642.6,2642.1,0.7708]
[1727399407557,3.47262,2642.6,2642.1,0.7708]
[1727399409060,0.26483,2642.5,2642.1,0.7708]
[1727399409456,3.47262,2642.6,2642.1,0.7708]
[1727399410153,0.26483,2642.5,2642.1,0.7708]
[1727399410349,3.47262,2642.6,2642.1,0.7708]
[1727399410860,0.26483,2642.5,2642.1,0.7708]
[1727399412457,3.9926,2643.0,2642.1,1.03566]
[1727399412655,3.9926,2643.0,2642.2,3.2078]
[1727399412861,0.26483,2642.6,2642.2,3.2078]
[1727399413361,3.9926,2643.0,2642.2,3.2078]
[1727399413551,3.9926,2643.0,2642.2,3.47265]
[1727399413754,0.26482,2642.7,2642.2,3.47265]
[1727399414157,0.26482,2642.6,2642.2,3.2078]
[1727399414368,0.26482,2642.6,2642.1,1.03567]
[1727399414562,0.26482,2642.6,2642.2,3.2078]
[1727399415161,0.26482,2642.6,2642.2,0.26486]
[1727399415467,0.26482,2642.6,2642.2,3.2078]
[1727399415962,0.26484,2642.4,2642.2,3.2078]
[1727399416155,0.66198,2642.9,2642.1,0.7708]
[1727399416462,0.26483,2642.5,2642.1,1.03567]
[1727399416657,0.26483,2642.5,2642.2,3.2078]
[1727399417562,0.26482,2642.6,2642.2,3.2078]
[1727399417762,0.26483,2642.5,2642.2,3.2078]
[1727399418065,0.26482,2642.6,2642.2,3.2078]
[1727399418264,0.26483,2642.5,2642.2,3.2078]
[1727399418464,0.26482,2642.6,2642.2,3.2078]
[1727399419364,0.26482,2642.6,2642.2,3.47266]
[1727399419864,0.26482,2642.6,2642.2,3.2078]
[1727399421066,0.26484,2642.4,2642.2,3.2078]
[1727399421265,0.26485,2642.3,2642.1,0.7708]
[1727399423358,0.66213,2642.3,2641.9,0.98479558]
[1727399423563,0.26488,2642.0,2641.8,0.98479558]
[1727399423759,0.26488,2642.1,2641.8,0.98479558]
[1727399424164,3.3233,2642.4,2641.8,0.98479558]
[1727399424372,0.3733,2642.4,2641.8,3.93479558]
[1727399424672,0.26486,2642.2,2641.9,0.98479558]
[1727399425359,0.26485,2642.3,2641.9,1.24967558]
[1727399425561,0.26486,2642.2,2641.9,0.98479558]
[1727399425970,0.26485,2642.3,2641.9,1.24968558]
[1727399426165,0.3887,2642.5,2642.1,0.26486]
[1727399426166,0.65353,2642.5,2642.1,0.26486]
[1727399426472,0.65353,2642.5,2642.2,0.8106]
[1727399426473,0.3887,2642.5,2642.2,0.8106]
[1727399426872,0.26484,2642.4,2642.2,0.8106]
[1727399427570,0.26485,2642.3,2642.2,0.8106]
[1727399428370,0.3887,2642.5,2641.9,0.98479558]
[1727399428666,2.95,2642.4,2641.9,0.8189]
[1727399429270,0.26486,2642.2,2641.9,0.8189]
[1727399429676,0.26487,2642.1,2641.9,1.80369558]
[1727399429875,0.26487,2642.1,2641.9,0.8189]
[1727399430067,6.1578,2642.4,2641.9,0.8189]
[1727399430273,0.26488,2642.1,2641.9,0.8189]
[1727399431473,0.26488,2642.0,2641.9,0.8189]
[1727399432179,0.26487,2642.1,2641.9,0.8189]
[1727399432472,0.26488,2642.0,2641.9,0.8189]
[1727399433866,0.26488,2642.1,2641.9,0.8189]
[1727399434072,0.4105,2642.0,2641.9,0.8189]
[1727399434681,0.67538,2642.0,2641.9,0.8189]
[1727399435478,0.26489,2641.9,2641.6,2.6]
[1727399435781,0.26489,2641.9,2641.6,3.3925]
[1727399435982,0.67538,2642.0,2641.6,3.65742]
[1727399436180,0.26491,2641.7,2641.6,3.3925]
[1727399436384,0.66228,2641.7,2641.2,0.98479558]
[1727399436579,0.26497,2641.1,2641.0,0.7917]
[1727399436879,0.26496,2641.2,2641.0,3.3917]
[1727399437076,3.21495,2641.3,2641.0,3.3917]
[1727399437778,0.26496,2641.2,2641.0,3.3917]
[1727399437985,3.21495,2641.3,2641.0,3.3917]
[1727399438480,0.26495,2641.3,2641.0,3.3917]
[1727399438978,0.3922,2641.4,2641.0,3.3917]
[1727399439481,0.26497,2641.1,2641.0,2.9932]
[1727399439687,2.95,2641.1,2640.5,0.98479558]
[1727399439977,0.26503,2640.5,2640.1,1.38409558]
[1727399440186,0.26503,2640.5,2640.2,2.6]
[1727399440378,0.3838,2640.5,2640.2,2.6]
[1727399440794,0.64884,2640.5,2640.2,2.6]
[1727399440972,0.3838,2640.5,2640.1,0.3993]
[1727399441176,0.3838,2640.5,2640.1,3.6071]
[1727399441875,0.64884,2640.5,2640.1,3.6071]
[1727399442077,0.26504,2640.4,2640.1,3.6071]
[1727399442275,0.64883,2640.5,2640.1,3.6071]
[1727399442684,0.26504,2640.4,2640.1,3.6071]
[1727399442887,3.59883,2640.5,2640.1,3.6071]
[1727399443074,0.26504,2640.4,2640.1,3.6071]
[1727399443674,3.59883,2640.5,2640.1,3.6071]
[1727399443892,3.3338,2640.5,2640.1,3.6071]
[1727399445384,3.59883,2640.5,2640.1,3.6071]
[1727399446289,0.26504,2640.4,2640.1,3.6071]
[1727399446889,3.59883,2640.5,2640.1,3.6071]
[1727399447093,3.59883,2640.5,2640.2,2.6]
[1727399450595,3.3338,2640.5,2640.2,2.6]
[1727399450882,0.26505,2640.3,2640.2,2.6]
[1727399453080,0.26505,2640.3,2639.5,0.088]
[1727399453081,0.26512,2639.6,2639.5,0.088]
[1727399453287,0.26514,2639.4,2639.3,0.3812]
[1727399453588,3.21514,2639.4,2639.3,0.3812]
[1727399453788,0.26515,2639.3,2639.2,0.3774]
[1727399454087,0.26515,2639.3,2639.2,1.9774]
[1727399454293,0.26515,2639.3,2639.2,0.3774]
[1727399455291,2.95,2639.4,2638.9,0.3812]
[1727399455503,0.2652,2638.9,2638.6,0.389]
[1727399455792,2.95,2638.7,2638.6,0.389]
[1727399456181,2.95,2638.8,2638.5,4.8078]
[1727399456393,2.95,2638.8,2638.3,0.3831]
[1727399456394,2.95,2638.8,2638.4,0.389]
[1727399457088,3.2152,2638.8,2638.4,0.389]
[1727399457492,0.26521,2638.7,2638.4,0.389]
[1727399458587,3.2152,2638.8,2638.4,0.389]
[1727399459796,0.26521,2638.7,2638.4,0.389]
[1727399460497,0.26523,2638.5,2638.4,0.389]
[1727399460701,0.26523,2638.5,2638.3,0.3831]
[1727399460888,2.95,2638.4,2638.3,0.3831]
[1727399461087,0.26525,2638.3,2638.2,3.2078]
[1727399461390,0.26526,2638.2,2637.7,4.0184]
[1727399461585,3.7904,2638.3,2637.8,0.2653]
[1727399461586,2.95,2638.1,2637.8,0.2653]
[1727399461791,2.95,2638.1,2637.7,0.8106]
[1727399462092,2.95,2638.1,2637.7,1.07591]
[1727399462293,2.95,2638.1,2637.7,0.4]
[1727399462997,3.21527,2638.1,2637.7,0.4]
[1727399463186,0.26529,2638.0,2637.7,0.4]
[1727399463391,0.26528,2638.0,2637.7,0.4]
[1727399463589,3.2078,2638.4,2637.8,1.6]
[1727399463590,3.21529,2637.9,2637.8,1.6]
[1727399464195,3.21529,2637.9,2637.6,0.3802]
[1727399464594,2.95,2637.9,2637.6,0.3802]
[1727399464892,3.21529,2637.9,2637.6,1.9802]
[1727399465400,0.26531,2637.8,2637.6,1.6]
[1727399465590,2.95,2637.9,2637.6,1.6]
[1727399465787,0.3757,2638.2,2637.6,1.6]
[1727399465992,0.3757,2638.2,2637.7,0.2653]
[1727399466399,0.3757,2638.2,2637.6,1.86532]
[1727399466603,2.95,2638.1,2637.7,0.26531]
[1727399466993,2.95,2638.1,2637.8,0.3887]
[1727399467195,2.95,2638.1,2637.8,0.654]
[1727399467402,2.95,2638.1,2637.8,0.3887]
[1727399467597,2.95,2638.1,2637.8,0.654]
[1727399467794,2.95,2638.1,2637.8,3.5965]
[1727399468698,2.95,2638.1,2637.8,0.3887]
[1727399468900,2.95,2638.1,2637.8,3.5965]
[1727399469301,2.95,2638.1,2637.8,0.654]
[1727399469499,0.66773,2638.5,2637.9,0.26528]
[1727399469703,2.95,2638.6,2638.1,3.47306]
[1727399469902,2.95,2638.4,2638.0,0.4]
[1727399470202,2.95,2638.4,2638.1,3.2078]
[1727399471597,2.95,2638.4,2638.1,3.47307]
[1727399471796,2.95,2638.7,2638.3,0.26525]
[1727399472097,2.95,2638.7,2638.2,0.26526]
[1727399472298,3.21521,2638.7,2638.1,3.47307]
[1727399472498,3.21521,2638.7,2638.2,0.26526]
[1727399472706,2.95,2638.7,2638.2,0.26526]
[1727399472997,2.95,2638.7,2638.3,0.3855]
[1727399473907,3.7311,2638.9,2638.4,3.2078]
[1727399474204,3.7311,2638.9,2638.4,3.47304]
[1727399474395,3.3396,2638.9,2638.5,0.26523]
[1727399474595,2.95,2638.9,2638.6,0.403]
[1727399474996,3.2152,2638.9,2638.6,0.403]
[1727399475197,2.95,2638.7,2638.6,0.403]
[1727399476105,2.95,2638.7,2638.3,3.5933]
[1727399476307,2.95,2638.7,2638.3,3.9697]
[1727399476603,3.21521,2638.7,2638.3,3.9697]
[1727399477301,0.26522,2638.6,2638.3,0.7619]
[1727399477705,2.95,2638.5,2638.3,0.7619]
[1727399477899,2.95,2638.5,2637.9,3.5911]
[1727399478101,2.95,2638.5,2637.9,3.6157]
[1727399478102,2.95,2638.2,2637.9,3.6157]
[1727399479003,3.21526,2638.2,2637.9,3.6157]
[1727399479211,2.95,2638.2,2637.9,3.6157]
[1727399479398,3.21526,2638.2,2637.9,3.6157]
[1727399479806,2.95,2638.2,2637.9,3.6157]
[1727399480614,3.21527,2638.2,2637.9,3.6157]
[1727399480801,3.99327,2638.2,2637.9,3.6157]
[1727399481102,6.42309,2638.0,2637.6,1.6]
[1727399481613,3.21529,2638.0,2637.6,1.6]
[1727399482004,3.21529,2638.0,2637.6,4.8078]
[1727399482208,1.04327,2638.2,2637.6,1.6]
[1727399482399,3.21528,2638.1,2637.6,1.6]
[1727399482708,2.95,2638.1,2637.6,5.07312]
[1727399483405,2.95,2638.1,2637.6,4.8078]
[1727399483406,3.21527,2638.1,2637.6,4.8078]
[1727399483606,0.778,2638.2,2637.7,0.26531]
[1727399483802,0.778,2638.2,2637.9,3.2078]
[1727399484102,2.95,2638.1,2637.6,1.86532]
[1727399484500,2.95,2638.1,2637.7,0.26531]
[1727399485109,0.778,2638.2,2637.8,0.2653]
[1727399485299,0.778,2638.2,2637.9,3.2078]
[1727399485506,0.778,2638.2,2637.9,3.6184]
[1727399485902,0.778,2638.2,2637.9,3.88369]
[1727399486105,0.778,2638.2,2637.9,0.4106]
[1727399486308,0.778,2638.2,2637.9,3.88369]
[1727399486505,2.95,2638.3,2637.9,0.67589]
[1727399486807,2.95,2638.3,2638.0,0.4067]
[1727399488816,3.21526,2638.3,2638.0,0.4067]
[1727399490304,0.3813,2638.5,2638.0,0.4067]
[1727399490508,3.21521,2638.7,2638.2,3.47306]
[1727399491316,0.26522,2638.6,2638.1,0.64947]
[1727399491505,0.26522,2638.6,2638.2,3.2078]
[1727399491707,2.95,2638.7,2638.2,3.2078]
[1727399491913,3.992,2638.9,2638.2,3.2078]
[1727399492113,4.2572,2638.9,2638.3,0.26524]
[1727399492414,0.7842,2638.9,2638.2,6.1578]
[1727399492619,0.088,2639.4,2638.9,0.26518]
[1727399492915,3.7494,2639.5,2638.9,0.3861]
[1727399493120,0.26515,2639.4,2638.9,0.7701]
[1727399493324,4.01454,2639.5,2639.0,1.6]
[1727399493718,3.7494,2639.5,2639.0,1.6]
[1727399494023,4.01454,2639.5,2639.0,1.6]
[1727399494225,3.7494,2639.5,2639.0,1.6]
[1727399495015,0.7994,2639.5,2639.0,1.6]
[1727399495214,10.3238,2640.0,2639.1,6.42297]
[1727399495413,2.95,2639.8,2639.1,3.2078]
[1727399495609,2.95,2639.8,2639.1,3.47296]
[1727399496117,2.95,2639.8,2639.2,0.26516]
[1727399496517,2.95,2639.8,2639.3,0.26515]
[1727399496717,2.95,2639.8,2639.2,0.26516]
[1727399498220,3.2151,2639.8,2639.1,3.47297]
[1727399498412,2.95,2639.8,2639.1,3.2078]
[1727399498620,2.95,2639.8,2639.2,0.26516]
[1727399498818,3.21511,2639.8,2639.1,3.2078]
[1727399499319,2.95,2639.3,2639.0,1.6]
[1727399499521,3.21515,2639.3,2639.0,1.6]
[1727399499820,0.3853,2639.2,2639.0,1.6]
[1727399500222,0.65046,2639.2,2639.0,1.6]
[1727399500525,0.3853,2639.2,2639.0,1.6]
[1727399503329,0.3853,2639.2,2638.9,3.5939]
[1727399503722,0.3853,2639.2,2638.9,5.1939]
[1727399503923,0.3853,2639.2,2638.9,3.2078]
[1727399503924,2.95,2639.1,2638.9,3.2078]
[1727399504324,3.21518,2639.1,2638.9,3.2078]
[1727399504830,2.95,2639.1,2638.9,3.2078]
[1727399505224,3.21517,2639.1,2638.9,3.2078]
[1727399505422,0.26518,2639.0,2638.9,3.2078]
[1727399505729,3.21518,2639.1,2638.9,3.2078]
[1727399506930,3.21518,2639.1,2638.6,4.8078]
[1727399507324,0.26518,2639.0,2638.6,4.8078]
[1727399508225,3.21517,2639.1,2638.6,4.8078]
[1727399509230,3.21517,2639.1,2638.6,5.07302]
[1727399509529,3.21517,2639.1,2638.6,3.2078]
[1727399509921,3.21517,2639.1,2638.7,1.6]
[1727399510832,0.26521,2638.7,2638.6,3.2078]
[1727399511029,0.26522,2638.6,2638.3,3.2078]